[Event "Early-Titled-Tuesday-Blitz-June-18-2024"]
[Site "Chess.com"]
[Date "2024.06.18"]
[Round "2"]
[White "ninguno46"]
[Black "Aygehovit1992"]
[Result "0-1"]
[WhiteElo "2562"]
[BlackElo "2795"]
[TimeControl "180+1"]
[EndTime "8:17:59 PDT"]
[Termination "Aygehovit1992 won by resignation"]

1. e4 {[%clk 0:02:59]} 1... c5 {[%clk 0:02:59.8]} 2. Nc3 {[%clk 0:02:58.4]} 2...
Nc6 {[%clk 0:02:59.7]} 3. f4 {[%clk 0:02:58.5]} 3... g6 {[%clk 0:02:58.1]} 4.
Nf3 {[%clk 0:02:59]} 4... Bg7 {[%clk 0:02:58.7]} 5. Bb5 {[%clk 0:02:59.2]} 5...
Nd4 {[%clk 0:02:59.1]} 6. Bd3 {[%clk 0:02:59.3]} 6... a6 {[%clk 0:02:43.1]} 7.
O-O {[%clk 0:02:57.7]} 7... b5 {[%clk 0:02:43.3]} 8. Nxd4 {[%clk 0:02:56.5]}
8... cxd4 {[%clk 0:02:35.3]} 9. Ne2 {[%clk 0:02:55.7]} 9... Bb7 {[%clk 0:02:33]}
10. a4 {[%clk 0:02:46.6]} 10... Qb6 {[%clk 0:02:26.1]} 11. Ng3 {[%clk 0:02:36]}
11... h5 {[%clk 0:02:21.8]} 12. h3 {[%clk 0:02:24.2]} 12... h4 {[%clk
0:02:06.6]} 13. Nh1 {[%clk 0:02:18.8]} 13... Nf6 {[%clk 0:02:06.5]} 14. Qe2
{[%clk 0:02:18.5]} 14... b4 {[%clk 0:01:51.4]} 15. b3 {[%clk 0:02:17.2]} 15...
d5 {[%clk 0:01:45.9]} 16. e5 {[%clk 0:02:11.4]} 16... Ne4 {[%clk 0:01:46]} 17.
Bb2 {[%clk 0:02:00.8]} 17... f5 {[%clk 0:01:36.7]} 18. exf6 {[%clk 0:01:31.8]}
18... exf6 {[%clk 0:01:31.8]} 19. f5 {[%clk 0:01:26.5]} 19... gxf5 {[%clk
0:01:23.3]} 20. Rxf5 {[%clk 0:01:25.2]} 20... O-O-O {[%clk 0:01:23.2]} 21. a5
{[%clk 0:01:19.5]} 21... Qe6 {[%clk 0:01:22]} 22. Raf1 {[%clk 0:01:13.2]} 22...
Rde8 {[%clk 0:01:07.8]} 23. Bxd4 {[%clk 0:01:09.5]} 23... Bh6 {[%clk 0:00:59.2]}
24. Rxf6 {[%clk 0:00:23.4]} 24... Nxf6 {[%clk 0:00:57.5]} 25. Bf5 {[%clk
0:00:20.4]} 25... Qxf5 {[%clk 0:00:55.2]} 26. Qxe8+ {[%clk 0:00:20.3]} 26...
Rxe8 {[%clk 0:00:53.9]} 27. Rxf5 {[%clk 0:00:20.2]} 27... Ne4 {[%clk 0:00:32.2]}
28. d3 {[%clk 0:00:15.3]} 28... Nc3 {[%clk 0:00:32.6]} 29. Bf2 {[%clk
0:00:06.8]} 29... Re2 {[%clk 0:00:23.9]} 30. Bxh4 {[%clk 0:00:05.7]} 30... d4
{[%clk 0:00:24.4]} 31. Rf2 {[%clk 0:00:04.7]} 31... Be3 {[%clk 0:00:23.8]} 0-1

[Event "Early-Titled-Tuesday-Blitz-June-18-2024"]
[Site "Chess.com"]
[Date "2024.06.18"]
[Round "2"]
[White "fourqueens13"]
[Black "SahibSinghKnight"]
[Result "0-1"]
[WhiteElo "2414"]
[BlackElo "2681"]
[TimeControl "180+1"]
[EndTime "8:17:59 PDT"]
[Termination "SahibSinghKnight won by resignation"]

1. e4 {[%clk 0:03:00.9]} 1... c5 {[%clk 0:02:59.8]} 2. a3 {[%clk 0:03:00.6]}
2... d5 {[%clk 0:02:55.2]} 3. exd5 {[%clk 0:02:59.9]} 3... Qxd5 {[%clk
0:02:55.6]} 4. Nc3 {[%clk 0:02:59.8]} 4... Qd8 {[%clk 0:02:55.9]} 5. Nf3 {[%clk
0:02:58]} 5... Nc6 {[%clk 0:02:55.2]} 6. Bb5 {[%clk 0:02:57.2]} 6... Bd7 {[%clk
0:02:55.6]} 7. O-O {[%clk 0:02:56.2]} 7... Nf6 {[%clk 0:02:55.4]} 8. Re1 {[%clk
0:02:55.8]} 8... e6 {[%clk 0:02:55.6]} 9. d3 {[%clk 0:02:49.3]} 9... a6 {[%clk
0:02:51.9]} 10. Ba4 {[%clk 0:02:44.6]} 10... h6 {[%clk 0:02:15.1]} 11. Bf4
{[%clk 0:02:42.2]} 11... Be7 {[%clk 0:02:10.8]} 12. Bg3 {[%clk 0:02:36.3]} 12...
O-O {[%clk 0:02:09.6]} 13. Qd2 {[%clk 0:02:23.7]} 13... Nd4 {[%clk 0:02:07]} 14.
Ne5 {[%clk 0:02:10]} 14... b5 {[%clk 0:01:57]} 15. Bb3 {[%clk 0:02:09.5]} 15...
Nxb3 {[%clk 0:01:51]} 16. cxb3 {[%clk 0:02:10.4]} 16... Be8 {[%clk 0:01:43.5]}
17. Rac1 {[%clk 0:02:03.1]} 17... Nd5 {[%clk 0:01:33.2]} 18. Ne4 {[%clk
0:01:58.7]} 18... f5 {[%clk 0:01:27.6]} 19. Nxc5 {[%clk 0:01:44.3]} 19... Bxc5
{[%clk 0:01:25.9]} 20. Rxc5 {[%clk 0:01:45.2]} 20... f4 {[%clk 0:01:25.9]} 21.
d4 {[%clk 0:01:33.2]} 21... fxg3 {[%clk 0:01:25.3]} 22. hxg3 {[%clk 0:01:34.1]}
22... Nf6 {[%clk 0:01:12.9]} 23. Qd3 {[%clk 0:01:25.2]} 23... Qd6 {[%clk
0:01:09.8]} 24. b4 {[%clk 0:01:13.5]} 24... Rd8 {[%clk 0:01:08.4]} 25. Rd1
{[%clk 0:01:11.9]} 25... Nd5 {[%clk 0:01:05.7]} 26. Qe2 {[%clk 0:01:07.4]} 26...
Nb6 {[%clk 0:00:56.5]} 27. b3 {[%clk 0:01:04.8]} 27... Nd7 {[%clk 0:00:55.8]}
28. Nxd7 {[%clk 0:00:52.7]} 28... Bxd7 {[%clk 0:00:44.9]} 29. Qe5 {[%clk
0:00:42.9]} 29... Qxe5 {[%clk 0:00:39.8]} 30. dxe5 {[%clk 0:00:43.8]} 30... Bc8
{[%clk 0:00:38]} 31. Rd6 {[%clk 0:00:35.4]} 31... Rxd6 {[%clk 0:00:31.6]} 32.
exd6 {[%clk 0:00:36.3]} 32... Rd8 {[%clk 0:00:31.9]} 33. f4 {[%clk 0:00:29]}
33... Bb7 {[%clk 0:00:28.5]} 34. Rc7 {[%clk 0:00:28.2]} 34... Bd5 {[%clk
0:00:28]} 35. d7 {[%clk 0:00:23.5]} 35... Kf7 {[%clk 0:00:27.7]} 36. Ra7 {[%clk
0:00:19.8]} 36... Bxb3 {[%clk 0:00:26.3]} 37. Rxa6 {[%clk 0:00:20]} 37... Rxd7
{[%clk 0:00:26.3]} 0-1

[Event "Early-Titled-Tuesday-Blitz-June-18-2024"]
[Site "Chess.com"]
[Date "2024.06.18"]
[Round "2"]
[White "N18player"]
[Black "BirdMaster3000"]
[Result "0-1"]
[WhiteElo "2546"]
[BlackElo "2776"]
[TimeControl "180+1"]
[EndTime "8:18:00 PDT"]
[Termination "BirdMaster3000 won by resignation"]

1. d4 {[%clk 0:03:00.2]} 1... f5 {[%clk 0:02:59.7]} 2. Bg5 {[%clk 0:02:59.8]}
2... g6 {[%clk 0:02:59.6]} 3. e3 {[%clk 0:02:59.6]} 3... Bg7 {[%clk 0:02:59.5]}
4. Nc3 {[%clk 0:02:52.9]} 4... h6 {[%clk 0:02:57.1]} 5. Bh4 {[%clk 0:02:51.8]}
5... d6 {[%clk 0:02:56.3]} 6. Qd2 {[%clk 0:02:46.1]} 6... g5 {[%clk 0:02:52.8]}
7. Bg3 {[%clk 0:02:46.1]} 7... Nf6 {[%clk 0:02:53.5]} 8. f3 {[%clk 0:02:45.1]}
8... Be6 {[%clk 0:02:43.2]} 9. O-O-O {[%clk 0:02:44.9]} 9... Bf7 {[%clk
0:02:43]} 10. h4 {[%clk 0:02:42.4]} 10... g4 {[%clk 0:02:27]} 11. Bd3 {[%clk
0:02:37]} 11... Qd7 {[%clk 0:02:25.1]} 12. Nge2 {[%clk 0:02:35.6]} 12... O-O
{[%clk 0:02:22.4]} 13. e4 {[%clk 0:02:22.6]} 13... e6 {[%clk 0:02:12.2]} 14.
exf5 {[%clk 0:02:19.5]} 14... exf5 {[%clk 0:02:12.1]} 15. Nf4 {[%clk 0:02:17.2]}
15... Nc6 {[%clk 0:02:07.8]} 16. d5 {[%clk 0:01:32.3]} 16... Ne5 {[%clk
0:02:06.6]} 17. Bb5 {[%clk 0:01:32]} 17... c6 {[%clk 0:02:04.2]} 18. dxc6 {[%clk
0:01:29.7]} 18... bxc6 {[%clk 0:02:04.2]} 19. Be2 {[%clk 0:01:24.4]} 19... d5
{[%clk 0:01:54.2]} 20. Bf2 {[%clk 0:01:03.5]} 20... Rab8 {[%clk 0:01:47.8]} 21.
Bd4 {[%clk 0:00:58.6]} 21... Qc7 {[%clk 0:01:43.6]} 22. Rhe1 {[%clk 0:00:49.6]}
22... Rfe8 {[%clk 0:01:34.8]} 23. fxg4 {[%clk 0:00:41.9]} 23... Ne4 {[%clk
0:01:29.6]} 24. Nxe4 {[%clk 0:00:36.4]} 24... fxe4 {[%clk 0:01:30.5]} 25. Nh5
{[%clk 0:00:17.1]} 25... Bxh5 {[%clk 0:01:21.3]} 26. gxh5 {[%clk 0:00:18]} 26...
c5 {[%clk 0:01:21.7]} 27. Qc3 {[%clk 0:00:10.8]} 27... Nd3+ {[%clk 0:01:04.8]}
28. Rxd3 {[%clk 0:00:02.4]} 28... exd3 {[%clk 0:01:04.7]} 29. Bxg7 {[%clk
0:00:01.9]} 29... Rxe2 {[%clk 0:01:03.6]} 30. Rxe2 {[%clk 0:00:01.6]} 30... dxe2
{[%clk 0:01:03.9]} 31. Be5 {[%clk 0:00:02.3]} 31... Qf7 {[%clk 0:00:53.6]} 32.
Qg3+ {[%clk 0:00:02.9]} 32... Kh7 {[%clk 0:00:46.1]} 33. Qd3+ {[%clk 0:00:02.8]}
33... Kg8 {[%clk 0:00:46.1]} 34. Qg3+ {[%clk 0:00:03.4]} 34... Kf8 {[%clk
0:00:46]} 35. Bd6+ {[%clk 0:00:03.5]} 35... Ke8 {[%clk 0:00:45.8]} 36. Qe5+
{[%clk 0:00:03.3]} 36... Kd7 {[%clk 0:00:46]} 37. Kd2 {[%clk 0:00:03]} 37... Re8
{[%clk 0:00:43.1]} 38. Qg3 {[%clk 0:00:01]} 38... e1=Q+ {[%clk 0:00:40.3]} 39.
Qxe1 {[%clk 0:00:01.8]} 0-1

[Event "Early-Titled-Tuesday-Blitz-June-18-2024"]
[Site "Chess.com"]
[Date "2024.06.18"]
[Round "2"]
[White "FerAsensio2024"]
[Black "Nechitaylo_Nikita"]
[Result "1-0"]
[WhiteElo "2539"]
[BlackElo "2332"]
[TimeControl "180+1"]
[EndTime "8:18:00 PDT"]
[Termination "FerAsensio2024 won on time"]

1. d4 {[%clk 0:03:00.9]} 1... Nf6 {[%clk 0:03:00.1]} 2. Nc3 {[%clk 0:03:01.4]}
2... e6 {[%clk 0:03:00.7]} 3. Bf4 {[%clk 0:03:01.4]} 3... d5 {[%clk 0:03:00.1]}
4. Nb5 {[%clk 0:03:01.2]} 4... Bd6 {[%clk 0:03:00.8]} 5. Nxd6+ {[%clk
0:03:01.1]} 5... cxd6 {[%clk 0:03:01.7]} 6. e3 {[%clk 0:03:01.7]} 6... O-O
{[%clk 0:03:01.5]} 7. c3 {[%clk 0:02:58.8]} 7... Nc6 {[%clk 0:03:01.8]} 8. h3
{[%clk 0:02:58.4]} 8... e5 {[%clk 0:02:58.4]} 9. Bh2 {[%clk 0:02:58.4]} 9... Bf5
{[%clk 0:02:56.8]} 10. Be2 {[%clk 0:02:44.8]} 10... Qb6 {[%clk 0:02:54.4]} 11.
Qb3 {[%clk 0:02:44.6]} 11... Qxb3 {[%clk 0:02:15.8]} 12. axb3 {[%clk 0:02:45.5]}
12... a5 {[%clk 0:02:16.5]} 13. Nf3 {[%clk 0:02:41.7]} 13... Rfe8 {[%clk
0:02:08.7]} 14. O-O {[%clk 0:02:13]} 14... Bc2 {[%clk 0:02:04.2]} 15. Ra3 {[%clk
0:01:46.1]} 15... Be4 {[%clk 0:01:02.2]} 16. Rfa1 {[%clk 0:01:13]} 16... Bxf3
{[%clk 0:01:01.4]} 17. Bxf3 {[%clk 0:01:12.7]} 17... b5 {[%clk 0:01:02]} 18. b4
{[%clk 0:01:00.3]} 18... a4 {[%clk 0:00:09]} 19. b3 {[%clk 0:01:00.4]} 19...
exd4 {[%clk 0:00:03]} 20. exd4 {[%clk 0:01:00.7]} 20... Rac8 {[%clk 0:00:01.6]}
21. bxa4 {[%clk 0:00:56.6]} 21... bxa4 {[%clk 0:00:02]} 22. Bxd6 {[%clk
0:00:53.5]} 22... Na7 {[%clk 0:00:02]} 23. Bc5 {[%clk 0:00:25.9]} 23... Nb5
{[%clk 0:00:02.3]} 24. Rxa4 {[%clk 0:00:26.7]} 24... Nxc3 {[%clk 0:00:03]} 25.
Ra7 {[%clk 0:00:27.4]} 25... Nfe4 {[%clk 0:00:01.6]} 26. Rb7 {[%clk 0:00:18.9]}
26... Nd2 {[%clk 0:00:01.3]} 27. Raa7 {[%clk 0:00:12.7]} 1-0

[Event "Early-Titled-Tuesday-Blitz-June-18-2024"]
[Site "Chess.com"]
[Date "2024.06.18"]
[Round "2"]
[White "Szachulec75"]
[Black "Road2GM3000"]
[Result "1-0"]
[WhiteElo "2217"]
[BlackElo "2466"]
[TimeControl "180+1"]
[EndTime "8:18:00 PDT"]
[Termination "Szachulec75 won by checkmate"]

1. Nf3 {[%clk 0:02:09.8]} 1... d5 {[%clk 0:02:59.6]} 2. g3 {[%clk 0:02:09.1]}
2... c6 {[%clk 0:03:00.2]} 3. Bg2 {[%clk 0:02:09.7]} 3... Nf6 {[%clk 0:03:01.1]}
4. d3 {[%clk 0:02:10.2]} 4... Bg4 {[%clk 0:03:01.9]} 5. O-O {[%clk 0:02:10.2]}
5... e6 {[%clk 0:03:02.6]} 6. Nbd2 {[%clk 0:02:09.9]} 6... Nbd7 {[%clk
0:03:03.2]} 7. h3 {[%clk 0:02:09.1]} 7... Bh5 {[%clk 0:03:03.3]} 8. e4 {[%clk
0:02:09.6]} 8... Be7 {[%clk 0:03:00.9]} 9. c3 {[%clk 0:02:08.6]} 9... Ne5 {[%clk
0:02:59.3]} 10. Qc2 {[%clk 0:02:06.9]} 10... Nxf3+ {[%clk 0:02:58.5]} 11. Nxf3
{[%clk 0:02:05.6]} 11... Bxf3 {[%clk 0:02:59.2]} 12. Bxf3 {[%clk 0:02:05.1]}
12... O-O {[%clk 0:03:00.1]} 13. Bg2 {[%clk 0:02:05.2]} 13... Nd7 {[%clk
0:02:58.5]} 14. f4 {[%clk 0:02:03.4]} 14... Rc8 {[%clk 0:02:53.6]} 15. e5 {[%clk
0:02:03.1]} 15... c5 {[%clk 0:02:52.9]} 16. Bd2 {[%clk 0:02:00.9]} 16... b5
{[%clk 0:02:53.1]} 17. Rae1 {[%clk 0:02:00.5]} 17... a5 {[%clk 0:02:53.6]} 18.
f5 {[%clk 0:02:00.5]} 18... Bg5 {[%clk 0:02:49]} 19. f6 {[%clk 0:01:55.4]} 19...
gxf6 {[%clk 0:02:46.6]} 20. exf6 {[%clk 0:01:51.2]} 20... Bxf6 {[%clk
0:02:45.8]} 21. Bh6 {[%clk 0:01:46.5]} 21... Bg7 {[%clk 0:02:44.9]} 22. Bxg7
{[%clk 0:01:42]} 22... Kxg7 {[%clk 0:02:44.6]} 23. Qe2 {[%clk 0:01:42.2]} 23...
Qg5 {[%clk 0:02:42.6]} 24. Kh2 {[%clk 0:01:41.1]} 24... Nf6 {[%clk 0:02:36.9]}
25. Rf4 {[%clk 0:01:35.3]} 25... e5 {[%clk 0:01:54.2]} 26. Qxe5 {[%clk
0:01:23.6]} 26... Qxe5 {[%clk 0:01:53.7]} 27. Rxe5 {[%clk 0:01:23.9]} 27... Rfd8
{[%clk 0:01:37.5]} 28. Rg5+ {[%clk 0:01:18.1]} 28... Kh6 {[%clk 0:01:34.3]} 29.
h4 {[%clk 0:01:14.6]} 29... Rd6 {[%clk 0:01:21.3]} 30. Kh3 {[%clk 0:01:09.5]}
30... Re8 {[%clk 0:01:17.2]} 31. Bf3 {[%clk 0:01:04.3]} 31... Re3 {[%clk
0:01:12.3]} 32. Kg2 {[%clk 0:01:01.5]} 32... Rxd3 {[%clk 0:01:04.9]} 33. g4
{[%clk 0:01:01.6]} 33... Ne4 {[%clk 0:00:41.6]} 34. Rg8 {[%clk 0:00:45.3]} 34...
f6 {[%clk 0:00:27.8]} 35. Rf5 {[%clk 0:00:42.2]} 35... Rd2+ {[%clk 0:00:18.6]}
36. Kg1 {[%clk 0:00:37.7]} 36... Ng5 {[%clk 0:00:05.2]} 37. Rxf6+ {[%clk
0:00:30.8]} 37... Rxf6 {[%clk 0:00:04.7]} 38. hxg5# {[%clk 0:00:30]} 1-0

[Event "Early-Titled-Tuesday-Blitz-June-18-2024"]
[Site "Chess.com"]
[Date "2024.06.18"]
[Round "2"]
[White "the_chess_child"]
[Black "KubaGepard"]
[Result "1-0"]
[WhiteElo "2875"]
[BlackElo "2606"]
[TimeControl "180+1"]
[EndTime "8:18:01 PDT"]
[Termination "the_chess_child won by resignation"]

1. e4 {[%clk 0:03:00.9]} 1... e5 {[%clk 0:02:59.1]} 2. Nf3 {[%clk 0:03:00]} 2...
Nc6 {[%clk 0:02:58.9]} 3. d3 {[%clk 0:02:56.2]} 3... g6 {[%clk 0:02:56.1]} 4. g3
{[%clk 0:02:56]} 4... Bg7 {[%clk 0:02:56.1]} 5. Bg2 {[%clk 0:02:56.1]} 5... Nge7
{[%clk 0:02:56.4]} 6. O-O {[%clk 0:02:53.4]} 6... O-O {[%clk 0:02:55.3]} 7. c3
{[%clk 0:02:53.9]} 7... d5 {[%clk 0:02:55.4]} 8. exd5 {[%clk 0:02:54.7]} 8...
Nxd5 {[%clk 0:02:55.9]} 9. Re1 {[%clk 0:02:55.3]} 9... a5 {[%clk 0:02:55.4]} 10.
Nbd2 {[%clk 0:02:54.7]} 10... Re8 {[%clk 0:02:54.8]} 11. Nc4 {[%clk 0:02:52.2]}
11... h6 {[%clk 0:02:50.9]} 12. Qc2 {[%clk 0:02:41.1]} 12... a4 {[%clk
0:02:47.7]} 13. Ne3 {[%clk 0:02:39.9]} 13... Nb6 {[%clk 0:02:41.4]} 14. Rb1
{[%clk 0:02:34.3]} 14... Be6 {[%clk 0:02:37]} 15. b4 {[%clk 0:02:32.9]} 15...
axb3 {[%clk 0:02:36.4]} 16. axb3 {[%clk 0:02:33.8]} 16... Qd7 {[%clk 0:02:30.4]}
17. b4 {[%clk 0:02:14.1]} 17... Ra2 {[%clk 0:02:20.9]} 18. Rb2 {[%clk 0:02:12]}
18... Rea8 {[%clk 0:02:18]} 19. b5 {[%clk 0:02:10.3]} 19... Ne7 {[%clk
0:02:17.1]} 20. c4 {[%clk 0:02:08]} 20... Rxb2 {[%clk 0:02:01.8]} 21. Bxb2
{[%clk 0:02:08.9]} 21... Ra2 {[%clk 0:01:54]} 22. Qb1 {[%clk 0:02:01.7]} 22...
Rxb2 {[%clk 0:00:41.3]} 23. Qxb2 {[%clk 0:02:02.6]} 23... Qxd3 {[%clk
0:00:35.6]} 24. Rd1 {[%clk 0:01:24.1]} 24... Nxc4 {[%clk 0:00:27]} 25. Qc1
{[%clk 0:01:20.5]} 25... Qb3 {[%clk 0:00:23]} 26. Nxc4 {[%clk 0:01:19.7]} 26...
Qxc4 {[%clk 0:00:21.4]} 27. Qxc4 {[%clk 0:01:19.6]} 27... Bxc4 {[%clk
0:00:22.3]} 28. Rd8+ {[%clk 0:00:56.5]} 28... Kh7 {[%clk 0:00:20.3]} 29. Rd7
{[%clk 0:00:56.4]} 29... Nf5 {[%clk 0:00:18.8]} 30. Rxc7 {[%clk 0:00:54.3]}
30... Bxb5 {[%clk 0:00:16.1]} 31. Rxf7 {[%clk 0:00:54.4]} 31... e4 {[%clk
0:00:14.2]} 32. Nd2 {[%clk 0:00:33.4]} 32... e3 {[%clk 0:00:14]} 33. fxe3 {[%clk
0:00:33.7]} 33... Nxe3 {[%clk 0:00:14.5]} 34. Rxb7 {[%clk 0:00:32.9]} 34... Nc4
{[%clk 0:00:04.8]} 35. Ne4 {[%clk 0:00:31.2]} 35... Be8 {[%clk 0:00:04.3]} 36.
Nf6+ {[%clk 0:00:31.3]} 1-0

[Event "Early-Titled-Tuesday-Blitz-June-18-2024"]
[Site "Chess.com"]
[Date "2024.06.18"]
[Round "2"]
[White "DvaHrasta"]
[Black "DuleMudule"]
[Result "0-1"]
[WhiteElo "2518"]
[BlackElo "2771"]
[TimeControl "180+1"]
[EndTime "8:18:01 PDT"]
[Termination "DuleMudule won on time"]

1. c4 {[%clk 0:03:00.9]} 1... e5 {[%clk 0:02:59.6]} 2. g3 {[%clk 0:03:00.9]}
2... Nc6 {[%clk 0:02:59.4]} 3. Bg2 {[%clk 0:03:00.9]} 3... g6 {[%clk 0:03:00.1]}
4. Nc3 {[%clk 0:02:59]} 4... Bg7 {[%clk 0:03:00.6]} 5. Nf3 {[%clk 0:02:59.1]}
5... Nf6 {[%clk 0:03:00.7]} 6. O-O {[%clk 0:02:58.4]} 6... O-O {[%clk
0:03:01.2]} 7. d3 {[%clk 0:02:58]} 7... d6 {[%clk 0:03:01.1]} 8. Rb1 {[%clk
0:02:58]} 8... a5 {[%clk 0:03:00.6]} 9. a3 {[%clk 0:02:58]} 9... Re8 {[%clk
0:03:01.2]} 10. e4 {[%clk 0:02:57.3]} 10... Nd7 {[%clk 0:02:53.6]} 11. b4 {[%clk
0:02:56.4]} 11... axb4 {[%clk 0:02:53.3]} 12. axb4 {[%clk 0:02:57.3]} 12... Nd4
{[%clk 0:02:53.5]} 13. Nxd4 {[%clk 0:02:56.5]} 13... exd4 {[%clk 0:02:54.4]} 14.
Ne2 {[%clk 0:02:53.5]} 14... c6 {[%clk 0:02:53.1]} 15. f4 {[%clk 0:02:48.9]}
15... f5 {[%clk 0:02:52.3]} 16. exf5 {[%clk 0:02:38.8]} 16... gxf5 {[%clk
0:02:53.2]} 17. Bb2 {[%clk 0:02:37.8]} 17... c5 {[%clk 0:02:52.8]} 18. bxc5
{[%clk 0:02:15.5]} 18... dxc5 {[%clk 0:02:53.7]} 19. g4 {[%clk 0:02:08.1]} 19...
Nf6 {[%clk 0:02:52.7]} 20. gxf5 {[%clk 0:01:59.9]} 20... Ng4 {[%clk 0:02:52.2]}
21. Ng3 {[%clk 0:01:50.6]} 21... Qh4 {[%clk 0:02:43.3]} 22. Bd5+ {[%clk
0:01:33.7]} 22... Kh8 {[%clk 0:02:41]} 23. Qd2 {[%clk 0:01:26]} 23... Ne3 {[%clk
0:02:21.5]} 24. Rf2 {[%clk 0:01:14.7]} 24... Nxd5 {[%clk 0:02:12.4]} 25. cxd5
{[%clk 0:01:13.7]} 25... Bd7 {[%clk 0:02:12.9]} 26. Re1 {[%clk 0:01:09.1]} 26...
b5 {[%clk 0:02:03.5]} 27. Re6 {[%clk 0:01:03.3]} 27... Bxe6 {[%clk 0:01:41.2]}
28. fxe6 {[%clk 0:01:02]} 28... Qf6 {[%clk 0:01:41.6]} 29. Qe2 {[%clk
0:00:53.8]} 29... c4 {[%clk 0:01:40.6]} 30. Nh5 {[%clk 0:00:51.7]} 30... Qh6
{[%clk 0:01:16.7]} 31. Nxg7 {[%clk 0:00:43.2]} 31... Qxg7+ {[%clk 0:01:15.3]}
32. Rg2 {[%clk 0:00:42.6]} 32... Qf6 {[%clk 0:01:15.6]} 33. dxc4 {[%clk
0:00:40.4]} 33... Rg8 {[%clk 0:01:15.5]} 34. Qe4 {[%clk 0:00:32.8]} 34... Rxg2+
{[%clk 0:01:13.8]} 35. Kxg2 {[%clk 0:00:32.8]} 35... Ra2 {[%clk 0:01:07.3]} 36.
e7 {[%clk 0:00:22.5]} 36... Rxb2+ {[%clk 0:01:05.2]} 37. Kf3 {[%clk 0:00:21.8]}
37... Rb3+ {[%clk 0:01:04.8]} 38. Ke2 {[%clk 0:00:18.8]} 38... d3+ {[%clk
0:01:04.6]} 39. Kf1 {[%clk 0:00:12.6]} 39... Qa1+ {[%clk 0:00:59.7]} 40. Kg2
{[%clk 0:00:10.6]} 40... Rb2+ {[%clk 0:00:51.3]} 41. Kh3 {[%clk 0:00:06.3]}
41... Qf1+ {[%clk 0:00:51]} 42. Kg4 {[%clk 0:00:05]} 42... Qe2+ {[%clk
0:00:49.1]} 0-1

[Event "Early-Titled-Tuesday-Blitz-June-18-2024"]
[Site "Chess.com"]
[Date "2024.06.18"]
[Round "2"]
[White "Marcin"]
[Black "CheckBits"]
[Result "1-0"]
[WhiteElo "2637"]
[BlackElo "2403"]
[TimeControl "180+1"]
[EndTime "8:18:02 PDT"]
[Termination "Marcin won by resignation"]

1. e4 {[%clk 0:03:00.9]} 1... e5 {[%clk 0:02:59.5]} 2. Nf3 {[%clk 0:03:00.8]}
2... Nc6 {[%clk 0:02:57.5]} 3. d4 {[%clk 0:02:58.7]} 3... exd4 {[%clk
0:02:57.4]} 4. Nxd4 {[%clk 0:02:59.6]} 4... Nf6 {[%clk 0:02:56.3]} 5. Nc3 {[%clk
0:02:59.4]} 5... Bb4 {[%clk 0:02:54.3]} 6. Nxc6 {[%clk 0:02:57.8]} 6... bxc6
{[%clk 0:02:54.6]} 7. Bd3 {[%clk 0:02:58.3]} 7... O-O {[%clk 0:02:54.3]} 8. O-O
{[%clk 0:02:57.7]} 8... Re8 {[%clk 0:02:54.6]} 9. h3 {[%clk 0:02:57.3]} 9... h6
{[%clk 0:02:52.9]} 10. Qf3 {[%clk 0:02:55.9]} 10... d5 {[%clk 0:02:52.6]} 11.
exd5 {[%clk 0:02:55.5]} 11... cxd5 {[%clk 0:02:52.9]} 12. Bf4 {[%clk 0:02:52]}
12... c6 {[%clk 0:02:49.8]} 13. Rad1 {[%clk 0:02:51.4]} 13... Be6 {[%clk
0:02:46]} 14. Ne2 {[%clk 0:02:49.1]} 14... Bd6 {[%clk 0:02:43]} 15. Rfe1 {[%clk
0:02:33.5]} 15... a5 {[%clk 0:02:38.4]} 16. c4 {[%clk 0:02:26.7]} 16... Qc7
{[%clk 0:02:34.6]} 17. Bxd6 {[%clk 0:02:08]} 17... Qxd6 {[%clk 0:02:35.5]} 18.
Nf4 {[%clk 0:02:08.7]} 18... d4 {[%clk 0:02:26.3]} 19. Rc1 {[%clk 0:01:49.2]}
19... c5 {[%clk 0:02:14.5]} 20. Nxe6 {[%clk 0:01:28.9]} 20... fxe6 {[%clk
0:02:14.2]} 21. Bg6 {[%clk 0:01:29.6]} 21... Reb8 {[%clk 0:02:10]} 22. Rc2
{[%clk 0:01:30]} 22... Ra6 {[%clk 0:02:06.1]} 23. Rce2 {[%clk 0:01:29.2]} 23...
Qd7 {[%clk 0:01:49.1]} 24. b3 {[%clk 0:01:27.3]} 24... a4 {[%clk 0:01:48.8]} 25.
g4 {[%clk 0:01:15.4]} 25... axb3 {[%clk 0:01:47.5]} 26. axb3 {[%clk 0:01:15.5]}
26... Rab6 {[%clk 0:01:46.3]} 27. Qf4 {[%clk 0:01:11.4]} 27... Rd6 {[%clk
0:01:17.7]} 28. Rxe6 {[%clk 0:01:08.6]} 28... Rd8 {[%clk 0:01:02.7]} 29. Rxd6
{[%clk 0:01:07.4]} 29... Qxd6 {[%clk 0:01:02.9]} 30. Qxd6 {[%clk 0:01:03.7]}
30... Rxd6 {[%clk 0:01:03.1]} 31. f4 {[%clk 0:01:03.2]} 31... Rd8 {[%clk
0:00:57.9]} 32. Kf2 {[%clk 0:01:02.5]} 32... Nd7 {[%clk 0:00:49]} 33. g5 {[%clk
0:00:50.5]} 33... hxg5 {[%clk 0:00:45.5]} 34. fxg5 {[%clk 0:00:51.4]} 34... Rb8
{[%clk 0:00:38.6]} 35. Bc2 {[%clk 0:00:47.2]} 35... Kf7 {[%clk 0:00:34.3]} 36.
Kf3 {[%clk 0:00:46.8]} 36... Nf8 {[%clk 0:00:27.3]} 37. h4 {[%clk 0:00:45.2]}
37... Ne6 {[%clk 0:00:27.2]} 38. Kg4 {[%clk 0:00:42.8]} 38... d3 {[%clk
0:00:24.8]} 39. Bxd3 {[%clk 0:00:42.2]} 39... Rxb3 {[%clk 0:00:24.9]} 40. Bg6+
{[%clk 0:00:40.9]} 40... Ke7 {[%clk 0:00:23.7]} 41. Bf5 {[%clk 0:00:40]} 41...
Rb6 {[%clk 0:00:21.3]} 42. Rxe6+ {[%clk 0:00:39.5]} 42... Rxe6 {[%clk
0:00:20.4]} 43. Bxe6 {[%clk 0:00:40.2]} 43... Kxe6 {[%clk 0:00:21.3]} 44. h5
{[%clk 0:00:40.7]} 44... Ke5 {[%clk 0:00:19.4]} 45. h6 {[%clk 0:00:38.6]} 45...
gxh6 {[%clk 0:00:19.6]} 46. gxh6 {[%clk 0:00:39.5]} 46... Kf6 {[%clk 0:00:20.1]}
47. Kf4 {[%clk 0:00:40.1]} 47... Kg6 {[%clk 0:00:20.5]} 48. Ke5 {[%clk
0:00:40.7]} 48... Kxh6 {[%clk 0:00:21.4]} 49. Kd5 {[%clk 0:00:41.4]} 49... Kg7
{[%clk 0:00:22.1]} 50. Kxc5 {[%clk 0:00:42.2]} 50... Kf7 {[%clk 0:00:23]} 51.
Kb6 {[%clk 0:00:42.9]} 51... Ke7 {[%clk 0:00:23.9]} 52. c5 {[%clk 0:00:42.6]}
52... Kd8 {[%clk 0:00:24.8]} 53. Kb7 {[%clk 0:00:43.2]} 53... Kd7 {[%clk
0:00:24.7]} 54. c6+ {[%clk 0:00:43.7]} 1-0